fUST/lending_fUST_20250517
["ID","MTS","AMOUNT","RATE_DAILY","PERIOD"]
[361333740,1747482647010,-450.0,0.00013972,2]
[361333741,1747482647019,-450.0,0.00013972,2]
[361333742,1747482647027,-450.0,0.00013972,2]
[361333743,1747482647036,-450.0,0.00014109,2]
[361333744,1747482647046,-200.0,0.00014109,2]
[361333745,1747482647055,-153.8,0.00014109,2]
[361333746,1747482647063,-450.0,0.00014109,2]
[361333747,1747482647072,-450.0,0.00014109,2]
[361333748,1747482647081,-450.0,0.00014109,2]
[361333749,1747482647090,-450.0,0.00014109,2]
[361333750,1747482647099,-450.0,0.00014109,2]
[361333751,1747482647109,-450.0,0.00014109,2]
[361333752,1747482647119,-450.0,0.00014109,2]
[361333753,1747482647128,-450.0,0.00014109,2]
[361333754,1747482647138,-662.21,0.00014109,2]
[361333755,1747482647147,-450.0,0.00014109,2]
[361333756,1747482647156,-450.0,0.00014109,2]
[361333757,1747482647165,-450.0,0.00014109,2]
[361333758,1747482647175,-257.60896193,0.00014109,2]
[361333760,1747482704244,201.0,0.00027397,120]
[361333762,1747482845378,316.73962925,0.000273,120]
[361333764,1747483231835,-211.99249354,0.00013158,2]
[361333765,1747483233576,-168.19200212,0.00013158,2]
[361333766,1747483503116,380.18449566,0.00011,2]
[361333792,1747483832708,-5000.0,0.00012767,2]
[361333794,1747483832717,-500.0,0.00013291,2]
[361333795,1747483832726,-500.0,0.00013291,2]
[361333796,1747483832735,-300.0,0.00013597,2]
[361333797,1747483832744,-480.0,0.00013597,2]
[361333798,1747483832753,-300.0,0.00013597,2]
[361333800,1747483832762,-1164.98386382,0.00013598,2]
[361333802,1747483832772,-151.92056122,0.00013598,2]
[361333804,1747483832780,-500.0,0.00013697,2]
[361333806,1747483832790,-500.0,0.00013697,2]
[361333807,1747483832799,-153.38454442,0.00013697,2]
[361333808,1747483832808,-500.0,0.00013697,2]
[361333809,1747483832817,-230.45374653,0.00013697,2]
[361333810,1747483832826,-500.0,0.00013697,2]
[361333811,1747483832835,-500.0,0.00013697,2]
[361333812,1747483832844,-500.0,0.00013697,2]
[361333813,1747483832855,-500.0,0.00013697,2]
[361333814,1747483832865,-500.0,0.00013697,2]
[361333815,1747483832874,-500.0,0.00013697,2]
[361333816,1747483832883,-500.0,0.00013697,2]
[361333817,1747483832892,-400.88722967,0.00013698,2]
[361333818,1747483832901,-444.01,0.00013698,2]
[361333819,1747483833070,-464.49374381,0.00013698,2]
[361333820,1747483833080,-400.0,0.00013698,2]
[361333821,1747483833090,-472.34929696,0.00013698,2]
[361333822,1747483833101,-400.0,0.00013698,2]
[361333823,1747483833111,-536.96,0.00013698,2]
[361333824,1747483833122,-400.0,0.00013698,2]
[361333825,1747483833132,-520.34951819,0.00013698,2]
[361333826,1747483833142,-400.0,0.00013698,2]
[361333827,1747483833151,-207.53837437,0.00013698,2]
[361333828,1747483833161,-400.0,0.00013698,2]
[361333829,1747483833171,-236.43657015,0.00013698,2]
[361333830,1747483833181,-254.22,0.00013698,2]
[361333831,1747483833190,-450.0,0.00013698,2]
[361333832,1747483833200,-450.0,0.00013698,2]
[361333833,1747483833210,-400.0,0.00013698,2]
[361333834,1747483833221,-400.0,0.00013698,2]
[361333835,1747483833235,-450.0,0.00013698,2]
[361333837,1747483833245,-450.0,0.00013698,2]
[361333838,1747483833254,-400.0,0.00013698,2]
[361333840,1747483833265,-400.0,0.00013698,2]
[361333842,1747483833275,-400.0,0.00013698,2]
[361333844,1747483833286,-468.57,0.00013698,2]
[361333846,1747483833296,-470.57435568,0.00013698,2]
[361333848,1747483833306,-450.0,0.00013698,2]
[361333850,1747483833315,-400.0,0.00013698,2]
[361333852,1747483833325,-400.0,0.00013698,2]
[361333854,1747483833335,-312.57191598,0.00013698,2]
[361333856,1747483833345,-450.0,0.00013698,2]
[361333858,1747483833359,-450.0,0.00013698,2]
[361333860,1747483833368,-184.16496041,0.00013698,2]
[361333862,1747483833378,-450.0,0.00013698,2]
[361333864,1747483833388,-450.0,0.00013698,2]
[361333866,1747483833397,-190.72,0.00013698,2]
[361333868,1747483833407,-400.0,0.00013698,2]
[361333870,1747483833417,-450.0,0.00013698,2]
[361333872,1747483833426,-400.0,0.00013698,2]
[361333874,1747483833436,-450.0,0.00013698,2]
[361333876,1747483833446,-327.4,0.00013698,2]
[361333878,1747483833455,-450.0,0.00013698,2]
[361333880,1747483833465,-450.0,0.00013698,2]
[361333882,1747483833475,-450.0,0.00013698,2]
[361333884,1747483833484,-187.89,0.00013698,2]
[361333886,1747483833493,-450.0,0.00013698,2]
[361333888,1747483833503,-494.93,0.00013698,2]
[361333890,1747483833512,-450.0,0.00013698,2]
[361333892,1747483833522,-450.0,0.00013698,2]
[361333894,1747483833532,-400.0,0.00013698,2]
[361333896,1747483833541,-400.0,0.00013698,2]
[361333898,1747483833551,-312.31,0.00013698,2]
[361333900,1747483833560,-404.90038416,0.00013698,2]
[361333902,1747483833570,-450.0,0.00013698,2]
[361333904,1747483833580,-30.22946699,0.00013698,2]
[361333906,1747483833593,-474.39053301,0.00013698,2]
[361333908,1747483833604,-169.02,0.00013698,2]
[361333910,1747483833614,-450.0,0.00013698,2]
[361333912,1747483833623,-389.72,0.00013698,2]
[361333914,1747483833633,-531.32,0.00013698,2]
[361333916,1747483833642,-450.0,0.00013698,2]
[361333918,1747483833652,-135.54946699,0.00013698,2]
[361333920,1747483833664,-349.94053301,0.00013698,2]
[361333922,1747483833674,-400.0,0.00013698,2]
[361333924,1747483833684,-450.0,0.00013698,2]
[361333927,1747483833693,-400.0,0.00013698,2]
[361333928,1747483833703,-400.0,0.00013698,2]
[361333931,1747483833713,-369.58,0.00013698,2]
[361333933,1747483833723,-380.47946699,0.00013698,2]
[361333935,1747483833736,-69.52053301,0.00013698,2]
[361333937,1747483833745,-347.194135,0.00013698,2]
[361333939,1747483833755,-400.0,0.00013698,2]
[361333941,1747483833764,-450.0,0.00013698,2]
[361333943,1747483833774,-450.0,0.00013698,2]
[361333945,1747483833783,-400.0,0.00013698,2]
[361333947,1747483833793,-400.0,0.00013698,2]
[361333949,1747483833802,-400.0,0.00013698,2]
[361333951,1747483833812,-400.0,0.00013698,2]
[361333953,1747483833822,-402.21,0.00013698,2]
[361333955,1747483833831,-404.08986947,0.00013698,2]
[361333957,1747483833840,-326.98546252,0.00013698,2]
[361333959,1747483833855,-73.01453748,0.00013698,2]
[361333961,1747483833864,-400.0,0.00013698,2]
[361333963,1747483833874,-450.0,0.00013698,2]
[361333965,1747483833884,-400.0,0.00013698,2]
[361333967,1747483833894,-450.0,0.00013698,2]
[361333969,1747483833903,-450.0,0.00013698,2]
[361333971,1747483833912,-400.0,0.00013698,2]
[361333973,1747483833922,-450.0,0.00013698,2]
[361333975,1747483833932,-450.0,0.00013698,2]
[361333977,1747483833941,-400.0,0.00013698,2]
[361333979,1747483833951,-400.0,0.00013698,2]
[361333981,1747483833960,-400.0,0.00013698,2]
[361333983,1747483833970,-400.0,0.00013698,2]
[361333985,1747483833979,-415.05185322,0.00013698,2]
[361333987,1747483833989,-450.0,0.00013698,2]
[361333989,1747483833998,-416.68545219,0.00013698,2]
[361333991,1747483834008,-450.0,0.00013698,2]
[361333993,1747483834017,-400.0,0.00013698,2]
[361333995,1747483834027,-450.0,0.00013698,2]
[361333997,1747483834037,-450.0,0.00013698,2]
[361333999,1747483834047,-400.0,0.00013698,2]
[361334001,1747483834057,-400.0,0.00013698,2]
[361334003,1747483834067,-400.0,0.00013698,2]
[361334005,1747483834076,-503.12747248,0.00013698,2]
[361334007,1747483834086,-400.0,0.00013698,2]
[361334009,1747483834096,-400.00752111,0.00013698,2]
[361334011,1747483834107,-450.0,0.00013698,2]
[361334013,1747483834117,-450.0,0.00013698,2]
[361334015,1747483834127,-400.0,0.00013698,2]
[361334017,1747483834138,-647.89,0.00013698,2]
[361334019,1747483834148,-450.0,0.00013698,2]
[361334021,1747483834158,-400.0,0.00013698,2]
[361334023,1747483834167,-450.0,0.00013698,2]
[361334024,1747483834177,-400.0,0.00013698,2]
[361334026,1747483834186,-400.0,0.00013698,2]
[361334028,1747483834196,-450.0,0.00013698,2]
[361334030,1747483834205,-433.03383778,0.00013698,2]
[361334032,1747483834214,-400.0,0.00013698,2]
[361334034,1747483834226,-450.0,0.00013698,2]
[361334036,1747483834236,-450.0,0.00013698,2]
[361334038,1747483834246,-400.00000002,0.00013698,2]
[361334040,1747483834255,-450.0,0.00013698,2]
[361334042,1747483834265,-450.0,0.00013698,2]
[361334044,1747483834275,-579.82,0.00013698,2]
[361334046,1747483834285,-450.0,0.00013698,2]
[361334048,1747483834294,-803.36,0.00013698,2]
[361334050,1747483834305,-432.03864737,0.00013698,2]
[361334052,1747483834314,-450.0,0.00013698,2]
[361334054,1747483834324,-500.0,0.00013698,2]
[361334056,1747483834334,-500.0,0.00013698,2]
[361334058,1747483834344,-400.0,0.00013698,2]
[361334060,1747483834355,-444.89,0.00013698,2]
[361334062,1747483834364,-400.46042744,0.00013698,2]
[361334064,1747483834374,-400.0,0.00013698,2]
[361334066,1747483834383,-573.90453187,0.00013698,2]
[361334068,1747483834392,-400.0,0.00013698,2]
[361334070,1747483834402,-400.0,0.00013698,2]
[361334072,1747483834412,-400.0,0.00013698,2]
[361334074,1747483834421,-400.0,0.00013698,2]
[361334075,1747483834430,-400.0,0.00013698,2]
[361334077,1747483834440,-450.0,0.00013698,2]
[361334079,1747483834449,-400.0,0.00013698,2]
[361334081,1747483834458,-450.0,0.00013698,2]
[361334083,1747483834467,-450.0,0.00013698,2]
[361334085,1747483834477,-400.73981762,0.00013698,2]
[361334087,1747483834486,-400.0,0.00013698,2]
[361334089,1747483834495,-400.0,0.00013698,2]
[361334091,1747483834504,-450.0,0.00013698,2]
[361334093,1747483834514,-501.24,0.00013698,2]
[361334095,1747483834523,-450.0,0.00013698,2]
[361334097,1747483834533,-531.93,0.00013698,2]
[361334099,1747483834542,-450.0,0.00013698,2]
[361334101,1747483834551,-400.0,0.00013698,2]
[361334103,1747483834560,-312.7,0.00013698,2]
[361334105,1747483834569,-400.0,0.00013698,2]
[361334107,1747483834579,-400.0,0.00013698,2]
[361334109,1747483834588,-400.0,0.00013698,2]
[361334111,1747483834597,-400.0,0.00013698,2]
[361334113,1747483834607,-586.18,0.00013698,2]
[361334116,1747483834621,-450.0,0.00013698,2]
[361334118,1747483834633,-433.68507303,0.00013698,2]
[361334120,1747483834647,-277.7,0.00013698,2]
[361334123,1747483834659,-400.0,0.00013698,2]
[361334125,1747483834671,-400.0,0.00013698,2]
[361334127,1747483834682,-450.0,0.00013698,2]
[361334129,1747483834692,-338.50915751,0.00013698,2]
[361334131,1747483834703,-400.0,0.00013698,2]
[361334133,1747483834715,-401.04192572,0.00013698,2]
[361334136,1747483834726,-400.0,0.00013698,2]
[361334138,1747483834738,-400.0,0.00013698,2]
[361334140,1747483834750,-450.0,0.00013698,2]
[361334142,1747483834762,-342.4,0.00013698,2]
[361334145,1747483834774,-450.0,0.00013698,2]
[361334147,1747483834786,-400.0,0.00013698,2]
[361334149,1747483834798,-450.0,0.00013698,2]
[361334152,1747483834810,-450.0,0.00013698,2]
[361334154,1747483834822,-450.0,0.00013698,2]
[361334156,1747483834834,-260.25208538,0.00013698,2]
[361334158,1747483834846,-450.0,0.00013698,2]
[361334160,1747483834858,-450.0,0.00013698,2]
[361334163,1747483834869,-450.0,0.00013698,2]
[361334165,1747483834881,-400.0,0.00013698,2]
[361334167,1747483834892,-400.0,0.00013698,2]
[361334169,1747483834903,-450.0,0.00013698,2]
[361334171,1747483834914,-400.0,0.00013698,2]
[361334173,1747483834927,-401.09461568,0.00013698,2]
[361334175,1747483834938,-450.0,0.00013698,2]
[361334177,1747483834950,-450.0,0.00013698,2]
[361334179,1747483834962,-450.0,0.00013698,2]
[361334182,1747483834972,-450.0,0.00013698,2]
[361334184,1747483834983,-400.0,0.00013698,2]
[361334186,1747483834994,-401.2892377,0.00013698,2]
[361334188,1747483835005,-450.0,0.00013698,2]
[361334190,1747483835016,-400.0,0.00013698,2]
[361334192,1747483835028,-300.0,0.00013698,2]
[361334194,1747483835039,-450.0,0.00013698,2]
[361334196,1747483835050,-450.0,0.00013698,2]
[361334199,1747483835062,-506.35665012,0.00013698,2]
[361334201,1747483835074,-450.0,0.00013698,2]
[361334203,1747483835085,-450.0,0.00013698,2]
[361334205,1747483835096,-450.0,0.00013698,2]
[361334207,1747483835110,-460.69,0.00013698,2]
[361334210,1747483835123,-283.33272553,0.00013698,2]
[361334212,1747483835135,-450.0,0.00013698,2]
[361334214,1747483835148,-450.0,0.00013698,2]
[361334216,1747483835160,-200.48,0.00013698,2]
[361334219,1747483835170,-450.0,0.00013698,2]
[361334221,1747483835181,-450.0,0.00013698,2]
[361334223,1747483835192,-496.14,0.00013698,2]
[361334225,1747483835202,-907.19,0.00013698,2]
[361334227,1747483835212,-400.0,0.00013698,2]
[361334229,1747483835224,-400.0,0.00013698,2]
[361334231,1747483835237,-400.44372818,0.00013698,2]
[361334233,1747483835249,-243.783458,0.00013699,2]
[361334235,1747483835261,-445.99,0.00013835,2]
[361334237,1747483835274,-450.0,0.00013835,2]
[361334240,1747483835285,-443.22,0.00013835,2]
[361334241,1747483835295,-450.0,0.00013835,2]
[361334242,1747483835307,-450.0,0.00013835,2]
[361334243,1747483835318,-560.29,0.00013835,2]
[361334244,1747483835328,-450.0,0.00013835,2]
[361334245,1747483835340,-344.37,0.00013835,2]
[361334246,1747483835351,-194.99,0.00013835,2]
[361334247,1747483835362,-450.0,0.00013835,2]
[361334248,1747483835372,-361.74,0.00013835,2]
[361334249,1747483835383,-450.0,0.00013835,2]
[361334250,1747483835393,-368.2416372,0.00013835,2]
[361334251,1747483835404,-553.09,0.00013835,2]
[361334252,1747483835414,-450.0,0.00013835,2]
[361334253,1747483835424,-450.0,0.00013835,2]
[361334254,1747483835434,-450.0,0.00013835,2]
[361334255,1747483835444,-292.98,0.00013835,2]
[361334256,1747483835455,-555.92,0.00013835,2]
[361334257,1747483835465,-357.23,0.00013835,2]
[361334258,1747483835476,-450.0,0.00013835,2]
[361334259,1747483835488,-450.0,0.00013835,2]
[361334260,1747483835498,-478.08,0.00013835,2]
[361334261,1747483835509,-450.0,0.00013835,2]
[361334262,1747483835519,-503.4,0.00013835,2]
[361334263,1747483835530,-450.0,0.00013835,2]
[361334264,1747483835540,-450.0,0.00013835,2]
[361334265,1747483835551,-450.0,0.00013835,2]
[361334266,1747483835562,-400.0,0.00013835,2]
[361334267,1747483835572,-305.85,0.00013835,2]
[361334268,1747483835583,-450.0,0.00013835,2]
[361334269,1747483835594,-450.0,0.00013835,2]
[361334270,1747483835605,-647.89,0.00013835,2]
[361334271,1747483835616,-163.96,0.00013835,2]
[361334272,1747483835627,-248.72,0.00013835,2]
[361334273,1747483835638,-450.0,0.00013835,2]
[361334274,1747483835648,-533.78,0.00013835,2]
[361334275,1747483835659,-450.0,0.00013835,2]
[361334276,1747483835669,-306.47112954,0.00013835,2]
[361334277,1747483835684,-143.52887046,0.00013835,2]
[361334278,1747483835695,-178.17800295,0.00013835,2]
[361334279,1747483835705,-356.49764005,0.00013835,2]
[361334280,1747483835716,-803.36,0.00013835,2]
[361334281,1747483835727,-450.0,0.00013835,2]
[361334282,1747483835738,-450.0,0.00013835,2]
[361334283,1747483835749,-450.0,0.00013835,2]
[361334284,1747483835759,-450.0,0.00013835,2]
[361334285,1747483835770,-450.0,0.00013835,2]
[361334286,1747483835780,-156.5,0.00013835,2]
[361334287,1747483835791,-450.0,0.00013835,2]
[361334288,1747483835801,-57.26953294,0.00013835,2]
[361334289,1747483835815,-392.73046706,0.00013835,2]
[361334290,1747483835825,-450.0,0.00013835,2]
[361334291,1747483835836,-450.0,0.00013835,2]
[361334292,1747483835847,-450.0,0.00013835,2]
[361334293,1747483835859,-256.21,0.00013835,2]
[361334294,1747483835870,-450.0,0.00013835,2]
[361334295,1747483835881,-450.0,0.00013835,2]
[361334296,1747483835892,-450.0,0.00013835,2]
[361334297,1747483835904,-450.0,0.00013835,2]
[361334298,1747483835914,-450.0,0.00013835,2]
[361334299,1747483835924,-450.0,0.00013835,2]
[361334300,1747483835935,-423.38763565,0.00013835,2]
[361334302,1747483838482,-1696.01582923,0.00012639,2]
[361334303,1747483838587,-2923.79967511,0.00012639,2]
[361334304,1747483838598,-5093.2642178,0.00013018,2]
[361334305,1747483838608,-26.61236435,0.00013835,2]
[361334306,1747483838617,-450.0,0.00013835,2]
[361334307,1747483838627,-450.0,0.00013835,2]
[361334308,1747483838636,-450.0,0.00013835,2]
[361334309,1747483838645,-450.0,0.00013835,2]
[361334310,1747483838654,-455.39,0.00013835,2]
[361334311,1747483838663,-240.61795681,0.00013835,2]
[361334312,1747483838671,-450.0,0.00013835,2]
[361334313,1747483838681,-450.0,0.00013835,2]
[361334314,1747483838690,-450.0,0.00013835,2]
[361334315,1747483838700,-450.0,0.00013835,2]
[361334316,1747483838709,-450.0,0.00013835,2]
[361334317,1747483838719,-218.42,0.00013835,2]
[361334318,1747483838728,-450.0,0.00013835,2]
[361334319,1747483838737,-907.19,0.00013835,2]
[361334320,1747483838746,-3671.36038369,0.000139,2]
[361334321,1747483838756,-581.76583992,0.0001397,2]
[361334322,1747483838766,-500.0,0.0001397,2]
[361334323,1747483838776,-500.0,0.0001397,2]
[361334324,1747483838785,-500.0,0.0001397,2]
[361334325,1747483838794,-500.0,0.0001397,2]
[361334326,1747483838803,-248.62938064,0.0001397,2]
[361334327,1747483838813,-565.63678487,0.0001397,2]
[361334328,1747483838823,-500.0,0.0001397,2]
[361334329,1747483838832,-500.0,0.0001397,2]
[361334330,1747483838842,-500.0,0.0001397,2]
[361334331,1747483838852,-217.5978633,0.00013972,2]
[361334332,1747483838862,-450.0,0.00013972,2]
[361334333,1747483838871,-450.0,0.00013972,2]
[361334334,1747483838881,-181.56,0.00013972,2]
[361334335,1747483838890,-450.0,0.00013972,2]
[361334336,1747483838900,-455.02182172,0.00013972,2]
[361334337,1747483838909,-154.4,0.00013972,2]
[361334338,1747483838918,-292.62,0.00013972,2]
[361334339,1747483838927,-450.0,0.00013972,2]
[361334340,1747483838937,-450.0,0.00013972,2]
[361334341,1747483838946,-450.0,0.00013972,2]
[361334342,1747483838955,-450.0,0.00013972,2]
[361334343,1747483838965,-450.0,0.00013972,2]
[361334344,1747483838974,-450.0,0.00013972,2]
[361334345,1747483838983,-450.0,0.00013972,2]
[361334346,1747483838992,-412.57848364,0.00013972,2]
[361334347,1747483839000,-647.89,0.00013972,2]
[361334348,1747483839009,-450.0,0.00013972,2]
[361334349,1747483839018,-450.0,0.00013972,2]
[361334350,1747483839027,-376.92,0.00013972,2]
[361334351,1747483839036,-803.36,0.00013972,2]
[361334352,1747483839045,-450.0,0.00013972,2]
[361334353,1747483839054,-450.0,0.00013972,2]
[361334354,1747483839063,-450.0,0.00013972,2]
[361334355,1747483839072,-450.0,0.00013972,2]
[361334356,1747483839081,-450.0,0.00013972,2]
[361334357,1747483839090,-450.0,0.00013972,2]
[361334358,1747483839099,-450.0,0.00013972,2]
[361334359,1747483839108,-450.0,0.00013972,2]
[361334360,1747483839117,-450.0,0.00013972,2]
[361334361,1747483839126,-450.0,0.00013972,2]
[361334362,1747483839135,-450.0,0.00013972,2]
[361334363,1747483839143,-450.0,0.00013972,2]
[361334364,1747483839152,-450.0,0.00013972,2]
[361334365,1747483839161,-450.0,0.00013972,2]
[361334366,1747483839170,-450.0,0.00013972,2]
[361334367,1747483839179,-450.0,0.00013972,2]
[361334368,1747483839188,-450.0,0.00013972,2]
[361334369,1747483839197,-450.0,0.00013972,2]
[361334370,1747483839206,-450.0,0.00013972,2]
[361334371,1747483839215,-450.0,0.00013972,2]
[361334372,1747483839226,-450.0,0.00013972,2]
[361334373,1747483839235,-450.0,0.00013972,2]
[361334374,1747483839244,-450.0,0.00013972,2]
[361334375,1747483839253,-450.0,0.00013972,2]
[361334376,1747483839262,-907.19,0.00013972,2]
[361334377,1747483839272,-345.22748998,0.00014,2]
[361334378,1747483839281,-500.0,0.00014038,2]
[361334379,1747483839290,-305.51,0.00014109,2]
[361334380,1747483839301,-450.0,0.00014109,2]
[361334381,1747483839311,-312.09,0.00014109,2]
[361334382,1747483839320,-450.0,0.00014109,2]
[361334383,1747483839329,-450.0,0.00014109,2]
[361334384,1747483839339,-450.0,0.00014109,2]
[361334385,1747483839348,-156.32283514,0.00014109,2]
[361334386,1747483839357,-450.0,0.00014109,2]
[361334387,1747483839367,-450.0,0.00014109,2]
[361334388,1747483839376,-450.0,0.00014109,2]
[361334389,1747483839386,-647.89,0.00014109,2]
[361334390,1747483839395,-450.0,0.00014109,2]
[361334391,1747483839404,-304.70831108,0.00014109,2]
[361334392,1747483839413,-803.36,0.00014109,2]
[361334393,1747483839422,-450.0,0.00014109,2]
[361334394,1747483839431,-450.0,0.00014109,2]
[361334395,1747483839439,-450.0,0.00014109,2]
[361334396,1747483839448,-450.0,0.00014109,2]
[361334397,1747483839457,-450.0,0.00014109,2]
[361334398,1747483839467,-450.0,0.00014109,2]
[361334399,1747483839476,-450.0,0.00014109,2]
[361334400,1747483839485,-597.05775994,0.00014109,2]
[361334401,1747483839494,-450.0,0.00014109,2]
[361334402,1747483839504,-450.0,0.00014109,2]
[361334403,1747483839513,-450.0,0.00014109,2]
[361334404,1747483839523,-450.0,0.00014109,2]
[361334405,1747483839532,-450.0,0.00014109,2]
[361334406,1747483839541,-500.0,0.00014109,2]
[361334407,1747483839550,-500.0,0.00014109,2]
[361334408,1747483839559,-500.0,0.00014109,2]
[361334409,1747483839568,-500.0,0.00014109,2]
[361334410,1747483839577,-500.0,0.00014109,2]
[361334411,1747483839588,-500.0,0.00014109,2]
[361334412,1747483839597,-577.15960979,0.00014109,2]
[361334413,1747483839608,-450.0,0.00014109,2]
[361334414,1747483839617,-450.0,0.00014109,2]
[361334415,1747483839626,-450.0,0.00014109,2]
[361334416,1747483839635,-450.0,0.00014109,2]
[361334417,1747483839644,-450.0,0.00014109,2]
[361334418,1747483839653,-450.0,0.00014109,2]
[361334419,1747483839663,-450.0,0.00014109,2]
[361334420,1747483839672,-450.0,0.00014109,2]
[361334421,1747483839681,-321.0,0.00014109,2]
[361334422,1747483839691,-360.5522979,0.00014109,2]
[361334423,1747483839700,-907.19,0.00014109,2]
[361334424,1747483839710,-450.0,0.00014246,2]
[361334425,1747483839719,-511.34,0.00014246,2]
[361334426,1747483839728,-450.0,0.00014246,2]
[361334427,1747483839738,-450.0,0.00014246,2]
[361334428,1747483839747,-450.0,0.00014246,2]
[361334429,1747483839756,-450.0,0.00014246,2]
[361334430,1747483839766,-647.89,0.00014246,2]
[361334431,1747483839775,-803.36,0.00014246,2]
[361334433,1747483839784,-450.0,0.00014246,2]
[361334435,1747483839794,-517.08,0.00014246,2]
[361334436,1747483839803,-450.0,0.00014246,2]
[361334437,1747483839812,-450.0,0.00014246,2]
[361334438,1747483839822,-450.0,0.00014246,2]
[361334439,1747483839831,-450.0,0.00014246,2]
[361334440,1747483839841,-450.0,0.00014246,2]
[361334441,1747483839852,-450.0,0.00014246,2]
[361334442,1747483839861,-450.0,0.00014246,2]
[361334444,1747483839870,-450.0,0.00014246,2]
[361334445,1747483839879,-450.0,0.00014246,2]
[361334446,1747483839889,-450.0,0.00014246,2]
[361334447,1747483839899,-450.0,0.00014246,2]
[361334448,1747483839908,-450.0,0.00014246,2]
[361334449,1747483839917,-450.0,0.00014246,2]
[361334450,1747483839927,-450.0,0.00014246,2]
[361334451,1747483839936,-450.0,0.00014246,2]
[361334453,1747483839946,-450.0,0.00014246,2]
[361334454,1747483839956,-450.0,0.00014246,2]
[361334455,1747483839965,-907.19,0.00014246,2]
[361334456,1747483839975,-3671.36038363,0.00014314,2]
[361334457,1747483839984,-263.98442198,0.00014383,3]
[361334458,1747483839994,-1962.54573069,0.00014383,2]
[361334459,1747483840003,-450.0,0.00014383,2]
[361334461,1747483840012,-450.0,0.00014383,2]
[361334462,1747483840023,-450.0,0.00014383,2]
[361334463,1747483840032,-647.89,0.00014383,2]
[361334464,1747483840041,-803.36,0.00014383,2]
[361334465,1747483840050,-450.0,0.00014383,2]
[361334466,1747483840059,-450.0,0.00014383,2]
[361334467,1747483840068,-450.0,0.00014383,2]
[361334468,1747483840077,-450.0,0.00014383,2]
[361334469,1747483840087,-450.0,0.00014383,2]
[361334470,1747483840097,-450.0,0.00014383,2]
[361334471,1747483840108,-450.0,0.00014383,2]
[361334473,1747483840118,-450.0,0.00014383,2]
[361334474,1747483840128,-450.0,0.00014383,2]
[361334476,1747483840137,-548.87,0.00014383,2]
[361334477,1747483840146,-450.0,0.00014383,2]
[361334478,1747483840156,-907.19,0.00014383,2]
[361334480,1747483840165,-450.0,0.0001452,2]
[361334481,1747483840174,-450.0,0.0001452,2]
[361334482,1747483840184,-450.0,0.0001452,2]
[361334484,1747483840193,-647.89,0.0001452,2]
[361334485,1747483840203,-803.36,0.0001452,2]
[361334487,1747483840213,-450.0,0.0001452,2]
[361334488,1747483840224,-450.0,0.0001452,2]
[361334489,1747483840235,-450.0,0.0001452,2]
[361334490,1747483840244,-450.0,0.0001452,2]